fUSD/lending_fUSD_20250211
["ID","MTS","AMOUNT","RATE_DAILY","PERIOD"]
[352738415,1739283096766,-500.0,0.00012046,2]
[352738416,1739283096776,-500.0,0.00012046,2]
[352738417,1739283096786,-500.0,0.00012046,2]
[352738418,1739283096795,-500.0,0.00012046,2]
[352738419,1739283096805,-500.0,0.00012046,2]
[352738420,1739283096814,-500.0,0.00012046,2]
[352738421,1739283096824,-500.0,0.00012046,2]
[352738422,1739283096833,-500.0,0.00012046,2]
[352738423,1739283096843,-500.0,0.00012046,2]
[352738424,1739283096852,-500.0,0.00012046,2]
[352738425,1739283096862,-500.0,0.00012046,2]
[352738426,1739283096871,-500.0,0.00012046,2]
[352738427,1739283096882,-500.0,0.00012046,2]
[352738428,1739283096891,-500.0,0.00012046,2]
[352738429,1739283096901,-500.0,0.00012046,2]
[352738430,1739283096911,-500.0,0.00012046,2]
[352738431,1739283096921,-500.0,0.00012046,2]
[352738432,1739283096930,-500.0,0.00012046,2]
[352738433,1739283096940,-500.0,0.00012046,2]
[352738434,1739283096950,-500.0,0.00012046,2]
[352738435,1739283096959,-500.0,0.00012046,2]
[352738436,1739283096969,-500.0,0.00012046,2]
[352738437,1739283096979,-500.0,0.00012046,2]
[352738438,1739283096989,-500.0,0.00012046,2]
[352738439,1739283096998,-500.0,0.00012046,2]
[352738440,1739283097009,-500.0,0.00012046,2]
[352738441,1739283097018,-500.0,0.00012046,2]
[352738442,1739283097029,-500.0,0.00012046,2]
[352738443,1739283097038,-500.0,0.00012046,2]
[352738444,1739283097048,-500.0,0.00012046,2]
[352738445,1739283097058,-500.0,0.00012046,2]
[352738446,1739283097071,-500.0,0.00012046,2]
[352738447,1739283097081,-500.0,0.00012046,2]
[352738448,1739283097091,-500.0,0.00012046,2]
[352738449,1739283097101,-500.0,0.00012046,2]
[352738450,1739283097111,-500.0,0.00012046,2]
[352738451,1739283097121,-500.0,0.00012046,2]
[352738452,1739283097131,-500.0,0.00012046,2]
[352738453,1739283097142,-500.0,0.00012046,2]
[352738454,1739283097152,-500.0,0.00012046,2]
[352738455,1739283097162,-500.0,0.00012046,2]
[352738456,1739283097172,-500.0,0.00012046,2]
[352738457,1739283097182,-500.0,0.00012046,2]
[352738458,1739283097191,-500.0,0.00012046,2]
[352738459,1739283097201,-500.0,0.00012046,2]
[352738460,1739283097211,-500.0,0.00012046,2]
[352738461,1739283097220,-500.0,0.00012046,2]
[352738462,1739283097229,-500.0,0.00012046,2]
[352738463,1739283097238,-500.0,0.00012046,2]
[352738464,1739283097247,-500.0,0.00012046,2]
[352738465,1739283097256,-500.0,0.00012046,2]
[352738466,1739283097265,-500.0,0.00012046,2]
[352738467,1739283097274,-500.0,0.00012046,2]
[352738468,1739283097283,-500.0,0.00012046,2]
[352738469,1739283097292,-524.64,0.00012047,2]
[352738470,1739283097302,-1114.15,0.00012048,2]
[352738471,1739283097311,-1907.79,0.00012048,2]
[352738472,1739283097321,-500.0,0.00012048,2]
[352738473,1739283097331,-2042.7,0.00012048,2]
[352738474,1739283097341,-2608.79,0.00012048,2]
[352738475,1739283097350,-205.0,0.00012054,2]
[352738476,1739283097360,-208.0,0.00012054,2]
[352738477,1739283097370,-205.0,0.00012054,2]
[352738478,1739283097380,-205.0,0.00012054,2]
[352738479,1739283097389,-208.0,0.00012054,2]
[352738480,1739283097398,-205.0,0.00012054,2]
[352738481,1739283097407,-208.0,0.00012054,2]
[352738482,1739283097416,-205.0,0.00012054,2]
[352738483,1739283097425,-208.0,0.00012054,2]
[352738484,1739283097434,-208.0,0.00012054,2]
[352738485,1739283097443,-205.0,0.00012054,2]
[352738486,1739283097452,-208.0,0.00012054,2]
[352738487,1739283097461,-205.0,0.00012054,2]
[352738488,1739283097471,-208.0,0.00012054,2]
[352738489,1739283097480,-202.0,0.00012054,2]
[352738490,1739283097490,-202.0,0.00012054,2]
[352738491,1739283097499,-202.0,0.00012054,2]
[352738492,1739283097508,-202.0,0.00012054,2]
[352738493,1739283097519,-202.0,0.00012054,2]
[352738494,1739283097529,-202.0,0.00012054,2]
[352738495,1739283097538,-202.0,0.00012054,2]
[352738496,1739283097548,-202.0,0.00012054,2]
[352738497,1739283097557,-205.0,0.00012054,2]
[352738498,1739283097567,-205.0,0.00012054,2]
[352738499,1739283097577,-205.0,0.00012054,2]
[352738500,1739283097586,-205.0,0.00012054,2]
[352738501,1739283097595,-205.0,0.00012054,2]
[352738502,1739283097604,-205.0,0.00012054,2]
[352738503,1739283097613,-205.0,0.00012054,2]
[352738504,1739283097626,-205.0,0.00012054,2]
[352738505,1739283097635,-202.0,0.00012054,2]
[352738506,1739283097644,-202.0,0.00012054,2]
[352738507,1739283097654,-202.0,0.00012054,2]
[352738508,1739283097663,-202.0,0.00012054,2]
[352738509,1739283097674,-202.0,0.00012054,2]
[352738510,1739283097683,-202.0,0.00012054,2]
[352738511,1739283097692,-202.0,0.00012054,2]
[352738512,1739283097702,-202.0,0.00012054,2]
[352738513,1739283097711,-214.0,0.00012054,2]
[352738514,1739283097720,-151.0,0.00012054,2]
[352738515,1739283097729,-500.0,0.00012054,2]
[352738516,1739283097739,-500.0,0.00012054,2]
[352738517,1739283097748,-500.0,0.00012054,2]
[352738518,1739283097757,-500.0,0.00012054,2]
[352738519,1739283097766,-500.0,0.00012054,2]
[352738520,1739283097775,-545.31,0.00012054,2]
[352738521,1739283097784,-500.0,0.00012054,2]
[352738522,1739283097794,-500.0,0.00012054,2]
[352738523,1739283097803,-500.0,0.00012054,2]
[352738524,1739283097812,-623.89,0.00012054,2]
[352738525,1739283097825,-2289.514115,0.00012054,2]
[352738526,1739283097834,-167.62007919,0.00012054,2]
[352738527,1739283097843,-912.071354,0.00012054,2]
[352738528,1739283097853,-562.39,0.00012054,2]
[352738529,1739283097862,-500.0,0.00012054,2]
[352738530,1739283097872,-1335.42,0.00012054,2]
[352738531,1739283097881,-500.0,0.00012054,2]
[352738532,1739283097891,-500.0,0.00012054,2]
[352738533,1739283097900,-500.0,0.00012054,2]
[352738534,1739283097910,-500.0,0.00012054,2]
[352738535,1739283097920,-500.0,0.00012054,2]
[352738536,1739283097930,-1026.73,0.00012054,2]
[352738537,1739283097939,-500.0,0.00012054,2]
[352738538,1739283097949,-500.0,0.00012054,2]
[352738539,1739283097959,-1291.73,0.00012054,2]
[352738540,1739283097969,-500.0,0.00012054,2]
[352738541,1739283097978,-500.0,0.00012054,2]
[352738542,1739283097987,-500.0,0.00012054,2]
[352738543,1739283097997,-1006.21,0.00012054,2]
[352738544,1739283098006,-500.0,0.00012054,2]
[352738545,1739283098016,-654.08,0.00012054,2]
[352738546,1739283098026,-500.0,0.00012054,2]
[352738547,1739283098036,-500.0,0.00012054,2]
[352738548,1739283098046,-500.0,0.00012054,2]
[352738549,1739283098055,-648.91,0.00012054,2]
[352738550,1739283098067,-500.0,0.00012054,2]
[352738551,1739283098077,-500.0,0.00012054,2]
[352738552,1739283098087,-829.91,0.00012054,2]
[352738553,1739283098097,-1283.05,0.00012054,2]
[352738554,1739283098107,-500.0,0.00012054,2]
[352738555,1739283098117,-500.0,0.00012054,2]
[352738556,1739283098128,-627.22,0.00012054,2]
[352738557,1739283098138,-784.62,0.00012054,2]
[352738558,1739283098147,-500.0,0.00012054,2]
[352738559,1739283098156,-500.0,0.00012054,2]
[352738560,1739283098166,-500.0,0.00012054,2]
[352738561,1739283098176,-500.0,0.00012054,2]
[352738562,1739283098186,-500.0,0.00012054,2]
[352738563,1739283098196,-500.0,0.00012054,2]
[352738564,1739283098206,-500.0,0.00012054,2]
[352738565,1739283098215,-1049.93,0.00012054,2]
[352738566,1739283098224,-500.0,0.00012054,2]
[352738567,1739283098233,-656.24,0.00012054,2]
[352738568,1739283098243,-500.0,0.00012054,2]
[352738569,1739283098253,-717.49,0.00012054,2]
[352738570,1739283098263,-750.73,0.00012054,2]
[352738571,1739283098272,-899.58,0.00012054,2]
[352738572,1739283098281,-500.0,0.00012054,2]
[352738573,1739283098291,-500.0,0.00012054,2]
[352738574,1739283098301,-951.35,0.00012054,2]
[352738575,1739283098311,-500.0,0.00012054,2]
[352738576,1739283098474,-1059.29,0.00012054,2]
[352738577,1739283098485,-1079.43,0.00012054,2]
[352738578,1739283098495,-771.17,0.00012054,2]
[352738579,1739283098505,-500.0,0.00012054,2]
[352738580,1739283098515,-500.0,0.00012054,2]
[352738581,1739283098525,-621.59,0.00012054,2]
[352738582,1739283098534,-500.0,0.00012054,2]
[352738583,1739283098544,-500.0,0.00012054,2]
[352738584,1739283098553,-772.38,0.00012054,2]
[352738585,1739283098563,-637.38,0.00012054,2]
[352738586,1739283098573,-564.18,0.00012054,2]
[352738587,1739283098582,-300.5,0.00012054,2]
[352738588,1739283098592,-500.0,0.00012054,2]
[352738589,1739283098602,-562.5,0.00012054,2]
[352738590,1739283098612,-726.26,0.00012054,2]
[352738591,1739283098623,-500.0,0.00012054,2]
[352738592,1739283098637,-465.46622838,0.00012054,2]
[352738593,1739283098647,-500.0,0.00012054,2]
[352738594,1739283098657,-500.0,0.00012054,2]
[352738595,1739283098667,-500.0,0.00012054,2]
[352738596,1739283098678,-500.0,0.00012054,2]
[352738597,1739283098688,-657.71,0.00012054,2]
[352738598,1739283098698,-545.49,0.00012054,2]
[352738599,1739283098708,-947.55,0.00012054,2]
[352738600,1739283098718,-500.0,0.00012054,2]
[352738601,1739283098728,-500.0,0.00012054,2]
[352738602,1739283098738,-500.0,0.00012054,2]
[352738603,1739283098747,-500.0,0.00012054,2]
[352738604,1739283098757,-500.0,0.00012054,2]
[352738605,1739283098766,-791.02,0.00012054,2]
[352738606,1739283098775,-594.78,0.00012054,2]
[352738607,1739283098785,-503.4832798,0.00012054,2]
[352738608,1739283098794,-899.13,0.00012054,2]
[352738609,1739283098804,-723.56,0.00012054,2]
[352738610,1739283098814,-623.3,0.00012054,2]
[352738611,1739283098823,-500.0,0.00012054,2]
[352738612,1739283098833,-602.04,0.00012054,2]
[352738613,1739283098843,-634.43,0.00012054,2]
[352738614,1739283098852,-500.0,0.00012054,2]
[352738615,1739283098863,-689.47,0.00012054,2]
[352738616,1739283098873,-500.0,0.00012054,2]
[352738617,1739283098884,-500.0,0.00012054,2]
[352738618,1739283098894,-500.0,0.00012054,2]
[352738619,1739283098903,-500.0,0.00012054,2]
[352738620,1739283098913,-500.0,0.00012054,2]
[352738621,1739283098923,-999.07,0.00012054,2]
[352738622,1739283098933,-2000.0,0.00012054,2]
[352738623,1739283098942,-500.0,0.00012054,2]
[352738624,1739283098952,-961.83,0.00012054,2]
[352738625,1739283098961,-932.98,0.00012054,2]
[352738626,1739283098971,-500.0,0.00012054,2]
[352738627,1739283098981,-500.0,0.00012054,2]
[352738628,1739283098991,-662.81,0.00012054,2]
[352738629,1739283099000,-541.66,0.00012054,2]
[352738630,1739283099010,-722.67,0.00012054,2]
[352738631,1739283099020,-500.0,0.00012054,2]
[352738632,1739283099030,-500.0,0.00012054,2]
[352738633,1739283099039,-500.0,0.00012054,2]
[352738634,1739283099048,-500.0,0.00012054,2]
[352738635,1739283099058,-500.0,0.00012054,2]
[352738636,1739283099069,-1030.45,0.00012054,2]
[352738637,1739283099079,-500.0,0.00012054,2]
[352738638,1739283099088,-835.87,0.00012054,2]
[352738639,1739283099098,-750.85,0.00012054,2]
[352738640,1739283099108,-500.0,0.00012054,2]
[352738641,1739283099118,-500.0,0.00012054,2]
[352738642,1739283099127,-500.0,0.00012054,2]
[352738643,1739283099137,-500.0,0.00012054,2]
[352738644,1739283099147,-500.0,0.00012054,2]
[352738645,1739283099157,-500.0,0.00012054,2]
[352738646,1739283099166,-488.82161895,0.00012054,2]
[352738647,1739283099176,-500.0,0.00012054,2]
[352738648,1739283099186,-500.0,0.00012054,2]
[352738649,1739283099195,-500.0,0.00012054,2]
[352738650,1739283099205,-500.0,0.00012054,2]
[352738651,1739283099214,-500.0,0.00012054,2]
[352738652,1739283099224,-1038.04,0.00012054,2]
[352738653,1739283099233,-655.85,0.00012054,2]
[352738654,1739283099243,-500.0,0.00012054,2]
[352738655,1739283099252,-626.7,0.00012054,2]
[352738656,1739283099262,-500.0,0.00012054,2]
[352738657,1739283099271,-500.0,0.00012054,2]
[352738658,1739283099280,-581.18,0.00012054,2]
[352738659,1739283099290,-650.34,0.00012054,2]
[352738660,1739283099299,-500.0,0.00012054,2]
[352738661,1739283099309,-557.62,0.00012054,2]
[352738662,1739283099320,-1181.79,0.00012054,2]
[352738663,1739283099329,-552.27,0.00012054,2]
[352738664,1739283099339,-982.11,0.00012054,2]
[352738665,1739283099348,-637.32,0.00012054,2]
[352738666,1739283099357,-500.0,0.00012054,2]
[352738667,1739283099366,-500.0,0.00012054,2]
[352738668,1739283099375,-500.0,0.00012054,2]
[352738669,1739283099385,-621.63,0.00012054,2]
[352738670,1739283099394,-720.74,0.00012054,2]
[352738671,1739283099405,-500.0,0.00012054,2]
[352738672,1739283099414,-756.12,0.00012054,2]
[352738673,1739283099425,-540.21,0.00012054,2]
[352738674,1739283099434,-500.0,0.00012054,2]
[352738675,1739283099444,-500.0,0.00012054,2]
[352738676,1739283099453,-152.64469515,0.00012054,2]
[352738677,1739283099462,-1099.61,0.00012054,2]
[352738678,1739283099472,-543.05,0.00012054,2]
[352738679,1739283099482,-735.96,0.00012054,2]
[352738680,1739283099491,-1136.7,0.00012054,2]
[352738681,1739283099500,-500.0,0.00012054,2]
[352738682,1739283099510,-500.0,0.00012054,2]
[352738683,1739283099520,-875.16,0.00012054,2]
[352738684,1739283099529,-580.72,0.00012054,2]
[352738685,1739283099538,-480.38,0.00012054,2]
[352738686,1739283099548,-500.0,0.00012054,2]
[352738687,1739283099557,-1187.47,0.00012054,2]
[352738688,1739283099568,-1053.93,0.00012054,2]
[352738689,1739283099578,-635.88,0.00012054,2]
[352738690,1739283099588,-1017.56,0.00012054,2]
[352738691,1739283099597,-683.09,0.00012054,2]
[352738692,1739283099607,-500.0,0.00012054,2]
[352738693,1739283099616,-1174.81,0.00012054,2]
[352738694,1739283099625,-500.0,0.00012054,2]
[352738695,1739283099639,-641.21,0.00012054,2]
[352738696,1739283099648,-515.4,0.00012054,2]
[352738697,1739283099657,-811.4,0.00012054,2]
[352738698,1739283099666,-500.0,0.00012054,2]
[352738699,1739283099678,-2279.79,0.00012054,2]
[352738700,1739283099687,-287.74152681,0.00012054,2]
[352738701,1739283099697,-500.0,0.00012054,2]
[352738702,1739283099707,-1026.36,0.00012054,2]
[352738703,1739283099717,-500.0,0.00012054,2]
[352738704,1739283099726,-544.63,0.00012054,2]
[352738705,1739283099736,-1181.86,0.00012054,2]
[352738706,1739283099745,-500.0,0.00012054,2]
[352738707,1739283099755,-678.67,0.00012054,2]
[352738708,1739283099764,-1235.55,0.00012054,2]
[352738709,1739283099774,-500.0,0.00012054,2]
[352738710,1739283099784,-500.0,0.00012054,2]
[352738711,1739283099794,-500.0,0.00012054,2]
[352738712,1739283099803,-2015.94,0.00012054,2]
[352738713,1739283099813,-638.72,0.00012054,2]
[352738714,1739283099824,-500.0,0.00012054,2]
[352738715,1739283099834,-500.0,0.00012054,2]
[352738716,1739283099844,-884.07,0.00012054,2]
[352738717,1739283099853,-1344.05,0.00012054,2]
[352738718,1739283099863,-500.0,0.00012054,2]
[352738719,1739283099873,-500.0,0.00012054,2]
[352738720,1739283099882,-1667.76,0.00012054,2]
[352738721,1739283099891,-500.0,0.00012054,2]
[352738722,1739283099900,-515.7,0.00012054,2]
[352738723,1739283099911,-522.2,0.00012054,2]
[352738724,1739283099920,-1113.72,0.00012054,2]
[352738725,1739283099929,-500.0,0.00012054,2]
[352738726,1739283099939,-757.59,0.00012054,2]
[352738727,1739283099949,-1179.03,0.00012054,2]
[352738728,1739283099958,-1282.85,0.00012054,2]
[352738729,1739283099968,-808.33,0.00012054,2]
[352738730,1739283099978,-1795.37,0.00012054,2]
[352738731,1739283099987,-1850.76,0.00012054,2]
[352738732,1739283099996,-603.62,0.00012054,2]
[352738733,1739283100006,-470.25,0.00012054,2]
[352738734,1739283100015,-500.0,0.00012054,2]
[352738735,1739283100025,-1151.05,0.00012054,2]
[352738736,1739283100035,-1119.24,0.00012054,2]
[352738737,1739283100045,-500.0,0.00012054,2]
[352738738,1739283100055,-1347.78,0.00012054,2]
[352738739,1739283100066,-819.33,0.00012054,2]
[352738740,1739283100076,-1536.44,0.00012054,2]
[352738741,1739283100086,-476.02507655,0.00012054,2]
[352738742,1739283100096,-892.03,0.00012054,2]
[352738743,1739283100106,-2017.38,0.00012054,2]
[352738744,1739283100116,-948.75,0.00012054,2]
[352738745,1739283100127,-526.05,0.00012054,2]
[352738746,1739283100136,-582.46,0.00012054,2]
[352738747,1739283100147,-683.75,0.00012054,2]
[352738748,1739283100158,-657.71,0.00012054,2]
[352738749,1739283100168,-2105.16,0.00012054,2]
[352738750,1739283100178,-1725.88,0.00012054,2]
[352738751,1739283100187,-500.0,0.00012054,2]
[352738752,1739283100197,-634.23,0.00012054,2]
[352738753,1739283100207,-1375.79,0.00012054,2]
[352738754,1739283100216,-582.27,0.00012054,2]
[352738755,1739283100226,-1848.33,0.00012054,2]
[352738756,1739283100236,-500.0,0.00012054,2]
[352738757,1739283100245,-853.65,0.00012054,2]
[352738758,1739283100254,-500.0,0.00012054,2]
[352738759,1739283100264,-1602.84,0.00012054,2]
[352738760,1739283100273,-1126.45,0.00012054,2]
[352738761,1739283100282,-500.0,0.00012054,2]
[352738762,1739283100292,-1623.28,0.00012054,2]
[352738763,1739283100301,-1955.0,0.00012054,2]
[352738764,1739283100310,-1095.96,0.00012054,2]
[352738765,1739283100321,-1427.46,0.00012054,2]
[352738766,1739283100331,-733.7,0.00012054,2]
[352738767,1739283100341,-500.0,0.00012054,2]
[352738768,1739283100350,-1892.51,0.00012054,2]
[352738769,1739283100359,-636.24,0.00012054,2]
[352738770,1739283100368,-1207.29,0.00012054,2]
[352738771,1739283100377,-500.0,0.00012054,2]
[352738772,1739283100386,-507.93,0.00012054,2]
[352738773,1739283100396,-1791.03,0.00012054,2]
[352738774,1739283100405,-1757.72,0.00012054,2]
[352738775,1739283100415,-1102.03,0.00012054,2]
[352738776,1739283100424,-713.64,0.00012054,2]
[352738777,1739283100433,-500.0,0.00012054,2]
[352738778,1739283100443,-4488.97,0.00012054,2]
[352738779,1739283100452,-1078.79,0.00012054,2]
[352738780,1739283100461,-1189.98,0.00012054,2]
[352738781,1739283100471,-2171.34,0.00012054,2]
[352738782,1739283100480,-2231.76,0.00012054,2]
[352738783,1739283100489,-3213.91,0.00012054,2]
[352738784,1739283100499,-1985.57,0.00012054,2]
[352738785,1739283100508,-500.0,0.00012054,2]
[352738786,1739283100520,-500.0,0.00012054,2]
[352738787,1739283100529,-2233.07,0.00012054,2]
[352738788,1739283100539,-2042.81,0.00012054,2]
[352738789,1739283100548,-1475.61,0.00012054,2]
[352738790,1739283100558,-500.0,0.00012054,2]
[352738791,1739283100570,-810.69,0.00012054,2]
[352738792,1739283100580,-2371.13,0.00012054,2]
[352738793,1739283100589,-500.0,0.00012054,2]
[352738794,1739283100599,-700.09,0.00012054,2]
[352738795,1739283100609,-1214.76,0.00012054,2]
[352738796,1739283100619,-2171.63,0.00012054,2]
[352738797,1739283100632,-2387.02,0.00012054,2]
[352738798,1739283100641,-620.08,0.00012054,2]
[352738799,1739283100650,-2340.95,0.00012054,2]
[352738800,1739283100660,-1886.51,0.00012054,2]
[352738801,1739283100671,-5444.75,0.00012054,2]
[352738802,1739283100680,-2886.17,0.00012054,2]
[352738803,1739283100690,-500.0,0.00012054,2]
[352738804,1739283100700,-727.8,0.00012054,2]
[352738805,1739283100711,-707.04,0.00012054,2]
[352738806,1739283100721,-2310.94,0.00012054,2]
[352738807,1739283100730,-2343.44,0.00012054,2]
[352738808,1739283100739,-937.33,0.00012054,2]
[352738809,1739283100749,-1158.26,0.00012054,2]
[352738810,1739283100758,-500.0,0.00012054,2]
[352738811,1739283100768,-670.35,0.00012054,2]
[352738812,1739283100777,-2558.39,0.00012054,2]
[352738813,1739283100786,-500.0,0.00012054,2]
[352738814,1739283100795,-620.78,0.00012054,2]
[352738815,1739283100805,-2007.68,0.00012054,2]
[352738816,1739283100815,-2648.76,0.00012054,2]
[352738817,1739283100825,-2171.75,0.00012054,2]
[352738818,1739283100835,-2434.45,0.00012054,2]
[352738819,1739283100844,-731.57,0.00012054,2]
[352738820,1739283100853,-2583.49,0.00012054,2]
[352738821,1739283100863,-2031.5,0.00012054,2]
[352738822,1739283100873,-500.0,0.00012054,2]
[352738823,1739283100942,-3062.38,0.00012054,2]
[352738824,1739283100951,-151.0,0.00012054,2]
[352738825,1739283100961,-1845.16,0.00012054,2]
[352738826,1739283100970,-3061.99,0.00012054,2]
[352738827,1739283100980,-2068.15,0.00012054,2]
[352738828,1739283100989,-1009.34,0.00012054,2]
[352738829,1739283100999,-2900.54,0.00012054,2]
[352738830,1739283101009,-2626.43,0.00012054,2]
[352738831,1739283101019,-500.0,0.00012054,2]
[352738832,1739283101029,-2213.47,0.00012054,2]
[352738833,1739283101039,-1085.29,0.00012054,2]
[352738834,1739283101049,-2309.34,0.00012054,2]
[352738835,1739283101058,-7282.99,0.00012054,2]
[352738836,1739283101069,-1952.41,0.00012054,2]
[352738837,1739283101078,-701.48,0.00012054,2]
[352738838,1739283101087,-500.0,0.00012054,2]
[352738839,1739283101097,-1931.94,0.00012054,2]
[352738840,1739283101107,-500.0,0.00012054,2]
[352738841,1739283101117,-5326.26,0.00012054,2]
[352738842,1739283101126,-500.0,0.00012054,2]
[352738843,1739283101135,-3327.15,0.00012054,2]
[352738844,1739283101145,-1259.82,0.00012054,2]
[352738845,1739283101154,-500.0,0.00012054,2]
[352738846,1739283101163,-667.96,0.00012054,2]
[352738847,1739283101172,-500.0,0.00012054,2]
[352738848,1739283101182,-3450.17,0.00012054,2]
[352738849,1739283101191,-500.0,0.00012054,2]
[352738850,1739283101201,-1704.66,0.00012054,2]
[352738851,1739283101211,-500.0,0.00012054,2]
[352738852,1739283101220,-500.0,0.00012054,2]
[352738853,1739283101230,-2127.38,0.00012054,2]
[352738854,1739283101239,-161.79406943,0.00012054,2]
[352738855,1739283101249,-500.0,0.00012054,2]
[352738856,1739283101259,-1476.79,0.00012054,2]
[352738857,1739283101268,-1839.16,0.00012054,2]
[352738858,1739283101277,-889.84,0.00012054,2]
[352738859,1739283101287,-2565.16,0.00012054,2]
[352738860,1739283101296,-2467.78,0.00012054,2]
[352738861,1739283101306,-500.0,0.00012054,2]
[352738862,1739283101317,-1657.8,0.00012054,2]
[352738863,1739283101327,-683.49,0.00012054,2]
[352738864,1739283101336,-500.0,0.00012054,2]
[352738865,1739283101346,-1036.17,0.00012054,2]
[352738866,1739283101356,-2953.99,0.00012054,2]
[352738867,1739283101365,-500.0,0.00012054,2]
[352738868,1739283101374,-2380.39,0.00012054,2]
[352738869,1739283101383,-1433.77,0.00012054,2]
[352738870,1739283101393,-1071.62,0.00012054,2]
[352738871,1739283101408,-1274.15,0.00012054,2]
[352738872,1739283101417,-500.0,0.00012054,2]
[352738873,1739283101427,-855.01,0.00012054,2]
[352738874,1739283101436,-1027.27,0.00012054,2]
[352738875,1739283101445,-1213.71,0.00012054,2]
[352738876,1739283101455,-502.93915404,0.00012054,2]
[352738877,1739283101464,-2875.82,0.00012054,2]
[352738878,1739283101473,-727.11,0.00012054,2]
[352738879,1739283101483,-500.0,0.00012054,2]
[352738880,1739283101492,-1743.04,0.00012054,2]
[352738881,1739283101501,-713.14,0.00012054,2]
[352738882,1739283101511,-2037.92,0.00012054,2]
[352738883,1739283101520,-2384.33,0.00012054,2]
[352738884,1739283101529,-1210.9,0.00012054,2]
[352738885,1739283101538,-3335.18,0.00012054,2]
[352738886,1739283101548,-400.0,0.0001207,2]
[352738887,1739283101557,-500.0,0.00012148,2]
[352738888,1739283101568,-524.64,0.00012184,2]
[352738889,1739283101577,-1114.15,0.00012185,2]
[352738890,1739283101587,-1907.79,0.00012185,2]
[352738891,1739283101596,-500.0,0.00012185,2]
[352738892,1739283101605,-2042.7,0.00012185,2]
[352738893,1739283101614,-2608.79,0.00012185,2]
[352738894,1739283101624,-151.0,0.00012191,2]
[352738895,1739283101638,-500.0,0.00012191,2]
[352738896,1739283101647,-500.0,0.00012191,2]
[352738897,1739283101656,-500.0,0.00012191,2]
[352738898,1739283101666,-500.0,0.00012191,2]
[352738899,1739283101676,-500.0,0.00012191,2]
[352738900,1739283101685,-545.31,0.00012191,2]
[352738901,1739283101694,-297.38,0.00012191,2]
[352738902,1739283101703,-500.0,0.00012191,2]
[352738903,1739283101714,-500.0,0.00012191,2]
[352738904,1739283101723,-623.89,0.00012191,2]
[352738905,1739283101732,-2289.514115,0.00012191,2]
[352738906,1739283101741,-160.739921,0.00012191,2]
[352738907,1739283101750,-912.071354,0.00012191,2]
[352738908,1739283101760,-562.39,0.00012191,2]
[352738909,1739283101769,-500.0,0.00012191,2]
[352738910,1739283101779,-1335.42,0.00012191,2]
[352738911,1739283101788,-500.0,0.00012191,2]
[352738912,1739283101797,-500.0,0.00012191,2]
[352738913,1739283101807,-500.0,0.00012191,2]
[352738914,1739283101816,-500.0,0.00012191,2]